bitfinex/quotes_ETHUSD_20220106
["timestamp","ask_amount","ask_price","bid_price","bid_amount"]
[1641470770810,0.00097651,3339.6,3338.9,0.00300245]
[1641470771212,0.00097651,3339.6,3339.2,1.21725814]
[1641470771425,0.00097651,3339.6,3339.3,0.3]
[1641470771855,0.00097651,3339.6,3339.3,1.11981739]
[1641470772256,0.00097651,3339.6,3339.3,1.04863]
[1641470773855,0.00097651,3339.6,3339.3,1.7972476]
[1641470774955,0.00097651,3339.6,3339.4,1.13327888]
[1641470775355,0.74856,3340.1,3339.4,1.13327888]
[1641470775611,0.65386944,3340.1,3339.5,12.05]
[1641470775811,0.00227369,3340.0,3339.5,12.35]
[1641470776217,0.00170527,3339.9,3339.5,0.3]
[1641470776412,0.00170527,3339.9,3339.4,2.93035888]
[1641470776615,2.43489152,3340.1,3339.4,2.93035888]
[1641470776616,0.00113685,3339.8,3339.4,2.93035888]
[1641470777512,0.00113685,3339.8,3339.4,1.43327888]
[1641470778713,0.00113685,3339.8,3339.4,2.18184998]
[1641470780053,0.00113685,3339.8,3339.5,1.13327888]
[1641470781253,5.00113685,3339.8,3339.5,1.13327888]
[1641470781455,5.00113685,3339.8,3339.4,2.18181888]
[1641470782053,5.00113685,3339.8,3339.5,0.00125934]
[1641470784409,5.75003685,3339.8,3339.5,0.00125934]
[1641470784607,6.49895685,3339.8,3339.5,0.00125934]
[1641470784808,6.49895685,3339.8,3339.0,1.13327888]
[1641470785207,6.49895685,3339.8,3339.1,0.00284212]
[1641470785411,5.75005685,3339.8,3339.1,0.00284212]
[1641470785608,2.24676,3339.7,3338.7,0.00511581]
[1641470785807,2.1472706,3338.9,3338.7,0.00511581]
[1641470786008,2.24676,3339.7,3338.7,0.00511581]
[1641470786209,2.24676,3339.7,3338.9,0.07482038]
[1641470786609,2.24676,3339.7,3339.0,0.00341054]
[1641470787053,2.24676,3339.7,3339.1,1.0]
[1641470787452,2.24676,3339.7,3339.2,0.00227369]
[1641470788056,2.24676,3339.7,3339.2,0.63133065]
[1641470788254,4.01564371,3339.7,3339.2,1.80904813]
[1641470788454,5.00113685,3339.8,3339.2,1.80904813]
[1641470788455,0.00104637,3339.6,3339.3,0.00170527]
[1641470788856,1.12418702,3340.9,3340.4,1.0327217]
[1641470789057,1.12418702,3340.9,3340.4,0.3]
[1641470789355,0.00625266,3340.7,3340.4,0.3]
[1641470789557,0.00625266,3340.7,3340.3,0.3]
[1641470789757,0.00568424,3340.6,3340.5,12.57905696]
[1641470789955,0.00568424,3340.6,3340.5,0.62905696]
[1641470790159,0.00568424,3340.6,3340.5,0.92905696]
[1641470790610,0.00568424,3340.6,3340.5,0.62905696]
[1641470790904,0.00568424,3340.6,3340.5,4.92905696]
[1641470791104,0.00568424,3340.6,3340.5,5.22905696]
[1641470791703,0.00568424,3340.6,3340.5,5.22523833]
[1641470792504,0.00568424,3340.6,3340.5,5.22621576]
[1641470793306,0.00568424,3340.6,3340.5,4.5971588]
[1641470793706,0.00568424,3340.6,3340.5,7.7471588]
[1641470793909,0.00568424,3340.6,3340.5,8.37367225]
[1641470794357,0.00568424,3340.6,3340.5,5.22367225]
[1641470795754,0.00568424,3340.6,3340.5,8.67367225]
[1641470796359,0.00568424,3340.6,3340.5,5.22367225]
[1641470797558,0.00568424,3340.6,3340.5,9.27367225]
[1641470798000,0.00568424,3340.6,3340.5,5.22367225]
[1641470798600,0.00568424,3340.6,3340.5,8.37367225]
[1641470800606,0.00568424,3340.6,3340.5,5.22367225]
[1641470801608,0.00568424,3340.6,3340.5,9.92367225]
[1641470803152,0.00568424,3340.6,3340.5,10.92367225]
[1641470804657,0.00568424,3340.6,3340.5,10.42367225]
[1641470805060,0.00568424,3340.6,3340.5,5.72367225]
[1641470805261,3.68833603,3341.3,3340.6,0.74838]
[1641470805503,3.68833603,3341.3,3340.5,1.62749088]
[1641470805504,0.74839,3341.0,3340.5,3.86670498]
[1641470805704,0.00113684,3340.8,3340.5,0.62749088]
[1641470805907,0.00113684,3340.8,3340.6,1.0]
[1641470806105,0.00113684,3340.8,3340.5,0.62749088]
[1641470806306,0.00113684,3340.8,3340.5,1.37585478]
[1641470806504,0.00113684,3340.8,3340.6,1.04836]
[1641470806905,0.00113684,3340.8,3340.6,2.04836]
[1641470807306,0.00113684,3340.8,3340.5,3.60641894]
[1641470807307,1.49790684,3340.8,3340.5,0.62749088]
[1641470807707,1.49790684,3340.8,3340.7,0.62651345]
[1641470807917,1.49790684,3340.8,3340.7,1.345e-05]
[1641470808108,1.49790684,3340.8,3340.4,1.13327888]
[1641470808307,2.24575,3340.6,3340.4,1.13327888]
[1641470808505,2.24575,3340.6,3339.9,4.60179105]
[1641470808706,0.74853,3340.4,3339.9,0.74853]
[1641470808907,0.74853,3340.4,3340.0,1.00341055]
[1641470809259,0.74853,3340.4,3340.1,0.30284212]
[1641470809466,0.74853,3340.4,3340.1,0.00284212]
[1641470809660,0.74853,3340.4,3339.8,1.43155258]
[1641470809861,2.61468771,3340.2,3339.8,1.43155258]
[1641470810060,2.61468771,3340.2,3339.9,0.00170527]
[1641470810861,2.61468771,3340.2,3339.8,0.00227369]
[1641470812062,2.61468771,3340.2,3339.7,0.00284212]
[1641470813108,2.61468771,3340.2,3339.7,1.136121]
[1641470813503,2.61468771,3340.2,3339.8,0.0032322]
[1641470813905,2.75,3340.1,3339.6,1.13327888]
[1641470814105,4.99803527,3340.1,3339.6,1.13327888]
[1641470814305,0.00113684,3340.0,3339.6,1.13327888]
[1641470814704,0.00113684,3340.0,3339.3,1.13327888]
[1641470815106,0.00113684,3340.0,3339.4,0.0022737]
[1641470815908,0.00113684,3340.0,3338.9,1.51027524]
[1641470815909,0.01291147,3339.6,3338.9,1.51027524]
[1641470816108,0.76185927,3339.6,3339.2,0.00113684]
[1641470816505,0.74896,3339.3,3339.2,0.00113684]
[1641470816768,0.74896,3339.3,3338.9,1.51027524]
[1641470816769,2.37825708,3339.3,3338.9,1.51027524]
[1641470817054,2.37825708,3339.3,3339.0,0.00113685]
[1641470817055,1.62929708,3339.3,3339.0,0.00113685]
[1641470817255,1.62929708,3339.3,3338.5,0.6761207]
[1641470817256,2.51599708,3339.3,3338.5,0.6761207]
[1641470817455,0.00113685,3339.2,3338.6,0.00227369]
[1641470817656,0.74902,3339.1,3338.6,0.00227369]
[1641470817853,0.00113685,3339.2,3338.6,0.00227369]
[1641470819055,0.00113685,3339.2,3338.9,1.07910002]
[1641470819354,0.00113685,3339.2,3338.9,1.37910002]
[1641470819954,0.00113685,3339.2,3338.9,1.80910002]
[1641470821011,0.00113685,3339.2,3339.0,0.7487017]
[1641470821410,0.00113685,3339.2,3339.0,1.7487017]
[1641470823012,0.00113685,3339.2,3339.0,1.0]
[1641470823417,0.00113685,3339.2,3338.9,1.17872]
[1641470823615,0.00113685,3339.2,3338.9,0.43]
[1641470823817,0.00113685,3339.2,3338.6,0.00227369]
[1641470824258,1.85941561,3339.2,3339.0,0.00087998]
[1641470824658,0.00113685,3339.2,3339.0,0.00087998]
[1641470825763,2.27858765,3339.1,3339.0,0.00087998]
[1641470826964,0.00113685,3339.2,3339.0,0.00087998]
[1641470830011,0.00113685,3339.2,3339.0,0.74955358]
[1641470830209,5.0,3340.2,3339.6,1.38355828]
[1641470830609,0.00511581,3340.1,3339.6,1.68355828]
[1641470831011,5.74857,3340.2,3339.6,2.43214828]
[1641470831012,0.00454738,3340.0,3339.6,2.43214828]
[1641470831413,0.00397896,3339.9,3339.6,2.43214828]
[1641470831868,0.00341054,3339.8,3339.7,7.41057552]
[1641470832069,0.00341054,3339.8,3339.7,8.41057552]
[1641470832269,0.00341054,3339.8,3339.7,13.81057552]
[1641470832665,5.0,3340.2,3339.8,11.3]
[1641470832869,0.78133211,3342.8,3339.8,11.3]
[1641470832870,2.25055025,3341.2,3339.9,3.76834768]
[1641470833068,2.25055025,3341.2,3340.8,1.30603093]
[1641470833266,1.60766025,3341.2,3341.0,0.7481997]
[1641470833667,1.60766025,3341.2,3341.1,0.3]
[1641470833868,1.60766025,3341.2,3341.1,7.39817]
[1641470834071,1.61391291,3341.2,3341.1,1.04817]
[1641470834268,1.61391291,3341.2,3341.1,2.04817]
[1641470834470,1.61391291,3341.2,3341.1,0.3]
[1641470834670,0.00625266,3341.2,3340.5,1.0]
[1641470834867,0.00625266,3341.2,3340.9,0.76057552]
[1641470835072,2.27012997,3341.4,3340.9,0.76057552]
[1641470835073,0.00568423,3341.1,3340.9,0.76057552]
[1641470835367,2.27012997,3341.4,3341.0,0.3]
[1641470835604,1.49697,3341.2,3340.9,0.76057552]
[1641470835802,1.49697,3341.2,3340.3,1.13343412]
[1641470836003,1.4321236,3341.0,3340.5,1.07913856]
[1641470836209,0.74862,3340.9,3340.5,1.07913856]
[1641470836404,0.75316739,3340.9,3340.5,1.07913856]
[1641470836603,0.00397896,3340.8,3340.5,1.07913856]
[1641470837006,0.00341054,3340.7,3340.5,0.01773856]
[1641470837203,0.00341054,3340.7,3339.7,1.13343412]
[1641470837403,0.00284212,3340.6,3339.3,5.02869867]
[1641470837602,0.00284212,3340.6,3339.8,0.00170527]
[1641470837903,0.00227369,3340.5,3339.4,0.00397897]
[1641470838103,0.00227369,3340.5,3339.4,1.00397897]
[1641470838303,2.24890169,3339.9,3339.4,1.00397897]
[1641470838502,2.24890169,3339.9,3339.5,0.00341054]
[1641470838907,2.24890169,3339.9,3339.4,0.00397897]
[1641470839104,2.24890169,3339.9,3339.5,0.00341054]
[1641470839358,2.24890169,3339.9,3339.4,0.00397897]
[1641470840557,2.24890169,3339.9,3339.1,0.00568424]
[1641470840757,2.24890169,3339.9,3338.9,0.00682108]
[1641470840957,2.24890169,3339.9,3338.9,0.75559108]
[1641470841362,2.24890169,3339.9,3339.0,0.00625266]
[1641470841960,2.24890169,3339.9,3339.3,1.30084174]
[1641470842160,0.74868,3340.1,3339.3,2.34945174]
[1641470842360,0.75030527,3340.4,3339.4,2.19215631]
[1641470842559,0.75030527,3340.4,3339.4,3.19215631]
[1641470842759,0.00113684,3340.3,3339.5,0.00341054]
[1641470846424,0.00113684,3340.3,3339.4,0.00397897]
[1641470847759,1.49739,3340.2,3339.4,0.00397897]
[1641470848763,0.00113684,3340.3,3339.4,0.00397897]
[1641470852611,0.00113684,3340.3,3339.7,1.10327954]
[1641470852815,0.00113684,3340.3,3339.8,2.34960634]
[1641470853009,0.00113684,3340.3,3339.8,2.35131161]
[1641470853210,0.00113684,3340.3,3339.9,0.43113685]
[1641470853411,0.00113684,3340.3,3340.0,2.53471128]
[1641470853610,0.00113684,3340.3,3340.1,0.43]
[1641470853812,0.00113684,3340.3,3340.2,14.69886463]
[1641470854012,0.00113684,3340.3,3340.2,15.12886463]
[1641470854276,0.00113684,3340.3,3340.2,16.20005202]
[1641470854469,1.12323853,3341.0,3340.3,13.10350381]
[1641470854673,1.12323853,3341.7,3341.0,1.21042051]
[1641470854871,1.12323853,3341.7,3341.1,2.33105947]
[1641470855070,1.12323853,3341.7,3340.8,4.29952413]
[1641470855271,1.12323853,3341.7,3340.8,3.59952413]
[1641470855472,1.12323853,3341.7,3340.9,1.0]
[1641470855672,2.02803604,3341.5,3341.0,2.24890893]
[1641470855872,2.02803604,3341.5,3340.9,2.49644]
[1641470856073,0.00625266,3341.4,3340.9,2.49644]
[1641470856472,0.00568424,3341.3,3340.9,2.49644]
[1641470856874,0.00511582,3341.2,3340.9,2.49644]
[1641470857276,0.00454739,3341.1,3340.9,2.49644]
[1641470857673,0.00397897,3341.0,3340.9,2.49644]
[1641470858110,1.26733117,3341.0,3340.9,4.71204541]
[1641470858909,1.12323853,3342.0,3341.4,1.37741895]
[1641470859113,1.12323853,3342.0,3341.5,2.36737776]
[1641470859313,0.00341054,3341.6,3341.5,2.36737776]
[1641470859509,0.00341054,3341.6,3341.5,3.36737776]
[1641470860111,0.00341054,3341.6,3341.5,1.0]
[1641470860610,0.00341054,3341.6,3341.5,2.25714697]
[1641470861010,0.00341054,3341.6,3341.5,6.30714697]
[1641470861210,0.00341054,3341.6,3341.5,3.25714697]
[1641470861413,0.00341054,3341.6,3341.5,3.29706805]
[1641470861614,0.00341054,3341.6,3341.5,1.0]
[1641470862162,0.00341054,3341.6,3341.4,1.3]
[1641470862360,0.00341054,3341.6,3341.3,1.79617]
[1641470862565,0.00284212,3341.5,3341.3,1.79617]
[1641470862862,0.00227369,3341.4,3341.3,1.79617]
[1641470864664,0.00227369,3341.4,3341.3,0.3]
[1641470864964,0.00227369,3341.4,3341.2,1.04828]
[1641470865365,0.00170527,3341.3,3341.2,1.04828]
[1641470865817,0.00170527,3341.3,3341.0,2.2447371]
[1641470865818,3.00170527,3341.3,3341.0,1.49649]
[1641470866022,0.00170527,3341.3,3340.7,1.49663]
[1641470866220,0.00113685,3341.2,3340.7,1.49663]
[1641470866417,0.00113685,3341.2,3340.8,0.00113685]
[1641470866619,0.00397896,3341.7,3340.8,0.00113685]
[1641470867225,0.74842,3341.3,3340.8,0.00113685]
[1641470867622,0.00113685,3341.2,3340.8,0.00113685]
[1641470867924,0.00113685,3341.2,3340.7,0.00170527]
[1641470869121,0.74957685,3341.2,3340.7,0.00170527]
[1641470869960,0.74957685,3341.2,3340.6,0.00227369]
[1641470870162,1.61588903,3340.6,3340.5,0.00284212]
[1641470870761,1.61588903,3340.6,3340.4,0.00341054]
[1641470870963,0.00113685,3341.2,3340.2,0.00454739]
[1641470871170,0.00113685,3341.2,3339.9,0.00625266]
[1641470871563,0.74852,3340.8,3339.9,0.00625266]
[1641470871764,0.00113685,3341.2,3339.9,0.00625266]
[1641470871765,0.74861,3341.1,3339.9,0.00625266]
[1641470872665,0.74861,3341.1,3339.9,1.00625266]
[1641470872864,0.74861,3341.1,3339.9,0.00625266]
[1641470873116,0.74861,3341.1,3340.0,0.00568424]
[1641470873117,2.62045473,3341.1,3340.0,0.00568424]
[1641470873315,2.62045473,3341.1,3339.9,0.00625266]
[1641470873915,0.7486,3340.4,3339.9,0.00625266]
[1641470875319,2.88869895,3340.4,3339.9,0.00625266]
[1641470876778,0.7486,3340.4,3340.0,1.08058646]
[1641470877177,0.7486,3340.4,3340.1,0.00511581]
[1641470877377,0.74847,3340.6,3340.1,0.30511581]
[1641470877581,5.07983853,3341.0,3340.2,2.32695009]
[1641470877782,1.12323853,3341.0,3340.2,2.33149748]
[1641470877978,1.12437538,3341.2,3340.3,0.00397897]
[1641470878381,0.74839,3340.9,3340.6,1.29615068]
[1641470878579,0.73342,3340.9,3340.6,1.29615068]
[1641470878779,0.73342,3340.9,3340.7,0.00170527]
[1641470878984,0.68193,3340.9,3340.7,0.00170527]
[1641470879181,1.49797685,3341.2,3340.7,0.00170527]
[1641470879780,1.49797685,3341.2,3340.7,2.4196153]
[1641470879980,1.49797685,3341.2,3340.7,1.4196153]
[1641470880182,1.49797685,3341.2,3340.8,0.00113685]
[1641470880615,1.09963879,3341.1,3340.8,2.18808807]
[1641470880817,1.12323853,3341.6,3340.8,2.18808807]
[1641470880818,1.12323853,3341.6,3341.3,1.37415287]
[1641470881022,1.12323853,3341.6,3341.4,2.17127966]
[1641470881216,1.12323853,3341.6,3341.0,3.50058928]
[1641470881217,0.00170527,3341.5,3341.0,3.50058928]
[1641470881619,0.00113684,3341.4,3341.0,3.50058928]
[1641470881820,0.00113684,3341.4,3341.0,1.7482083]
[1641470882017,0.00341054,3341.8,3341.1,0.3]
[1641470882219,0.00341054,3341.8,3341.1,1.04815]
[1641470882420,5.0,3341.2,3341.1,2.04815]
[1641470883019,4.99087,3341.2,3341.1,2.04815]
[1641470883229,4.98863,3341.2,3341.1,2.04815]
[1641470883420,4.98863,3341.2,3341.1,2.04373]
[1641470884665,2.43628703,3341.2,3341.1,2.04373]
[1641470885265,2.43628703,3341.2,3341.0,1.4963]
[1641470885466,2.43628703,3341.2,3340.9,0.00170527]
[1641470885667,3.18469703,3341.2,3340.9,0.00170527]
[1641470885866,3.18469703,3341.2,3340.6,1.49667]
[1641470885867,3.18469703,3341.2,3340.7,0.00284212]
[1641470886767,2.47266535,3341.0,3340.7,0.00284212]
[1641470887273,0.74839,3341.0,3340.7,0.00284212]
[1641470887869,0.74839,3341.0,3340.6,2.79667]
[1641470887870,0.74839,3341.0,3340.6,1.0]
[1641470888111,0.00113685,3340.9,3340.3,0.7485]
[1641470888314,0.00113685,3340.9,3340.1,2.2446]
[1641470888315,1.80387844,3340.4,3340.1,1.0]
[1641470888710,0.00113685,3340.9,3340.1,1.0]
[1641470888917,0.00113685,3340.9,3340.0,1.49694]
[1641470889111,1.49706,3340.6,3339.8,3.05990149]
[1641470889310,0.00113685,3340.9,3340.1,0.00341054]
[1641470889511,2.24695685,3340.9,3340.1,0.00341054]
[1641470889911,2.25995051,3340.3,3340.1,0.00341054]
[1641470890111,2.25995051,3340.3,3339.6,0.00625266]
[1641470891312,2.25995051,3340.3,3339.5,1.49719]
[1641470891514,2.25995051,3340.3,3339.6,0.00625266]
[1641470891969,0.74868,3340.2,3339.6,0.00625266]
[1641470892369,0.74868,3340.2,3339.6,2.99975756]
[1641470892571,5.29547,3340.8,3339.7,1.0]
[1641470892772,1.49697,3340.8,3339.8,2.24525653]
[1641470892970,0.74849,3340.5,3339.8,3.29882294]
[1641470893168,0.74849,3340.5,3339.9,1.00454739]
[1641470893571,1.76180204,3340.7,3340.0,0.00397897]
[1641470893770,1.76180204,3340.7,3340.1,0.74843]
[1641470894074,1.76180204,3340.7,3340.2,0.00284212]
[1641470894670,0.74844,3340.6,3340.2,0.00284212]
[1641470894871,1.4971,3340.5,3340.2,0.00284212]
[1641470896327,0.74849,3340.5,3340.2,0.00284212]
[1641470897726,1.76180204,3340.7,3340.2,0.00284212]
[1641470897925,0.74843,3340.8,3340.2,0.00284212]
[1641470898630,2.43628703,3340.5,3340.2,1.00284212]
[1641470898827,2.43628703,3340.5,3340.3,2.21816027]
[1641470899027,2.43628703,3340.5,3340.3,2.52043397]
[1641470899263,2.43628703,3340.5,3340.4,4.40170527]
[1641470899460,2.43628703,3340.5,3340.4,1.00170527]
[1641470899661,2.43628703,3340.5,3340.4,0.00170527]
[1641470900762,2.43628703,3340.5,3340.4,1.00170527]
[1641470900962,2.43628703,3340.5,3340.4,2.56685022]
[1641470901163,2.43628703,3340.5,3340.4,1.62514495]
[1641470902264,2.43628703,3340.5,3340.4,2.62514495]
[1641470902463,2.43628703,3340.5,3340.4,1.62514495]
[1641470902663,2.43628703,3340.5,3340.4,2.62514495]
[1641470906424,2.43628703,3340.5,3340.4,4.83056687]
[1641470906625,2.43628703,3340.5,3340.4,2.62514495]
[1641470907093,2.43628703,3340.5,3340.4,4.84336755]
[1641470907488,2.43628703,3340.5,3340.4,12.64336755]
[1641470907689,0.00113685,3340.9,3340.5,12.05]
[1641470907890,0.00113685,3340.9,3340.8,12.0]
[1641470908090,2.24837286,3341.9,3341.2,0.7480951]
[1641470908290,2.24837286,3341.9,3341.3,15.63210405]
[1641470908291,3.18788768,3341.6,3341.3,15.63210405]
[1641470908496,1.12323853,3341.6,3341.4,0.43]
[1641470908691,1.12323853,3341.6,3341.5,11.4598577]
[1641470909091,1.13005961,3341.6,3341.5,12.7598577]
[1641470909595,0.00682108,3341.6,3341.5,14.38500265]
[1641470909993,0.00682108,3341.6,3341.5,15.13299265]
[1641470910195,0.00682108,3341.6,3341.5,6.08299265]
[1641470914473,0.00682108,3341.6,3341.5,3.67313495]
[1641470914877,0.00682108,3341.6,3341.5,1.62514495]
[1641470915776,0.00682108,3341.6,3341.2,0.13819997]
[1641470916177,0.00625266,3341.5,3341.2,0.13819997]
[1641470916474,0.00568423,3341.4,3341.2,0.13819997]
[1641470916876,0.00511581,3341.3,3341.2,0.13819997]
[1641470918218,0.00511581,3341.3,3341.2,3.63819997]
[1641470918417,0.00511581,3341.3,3341.2,1.13819997]
[1641470918819,0.00511581,3341.3,3341.2,0.13819997]
[1641470919218,0.75340821,3341.3,3340.7,1.13450831]
[1641470919418,0.74837,3341.2,3340.7,1.13450831]
[1641470919619,0.75291739,3341.2,3340.7,1.13450831]
[1641470919817,0.00397896,3341.1,3340.7,1.13450831]
[1641470920021,0.00397896,3341.1,3340.7,1.43450831]
[1641470920218,0.00341054,3341.0,3340.7,0.3]
[1641470920421,0.75173054,3341.0,3340.6,2.30641938]
[1641470920618,0.00284212,3340.9,3340.6,2.30641938]
[1641470920818,1.49950212,3340.9,3340.6,2.30641938]
[1641470921019,0.00227369,3340.8,3340.6,1.30641938]
[1641470921221,0.00227369,3340.8,3340.6,2.30641938]
[1641470921419,0.00170527,3340.7,3340.6,1.73641938]
[1641470921618,0.00170527,3340.7,3340.6,1.73]
[1641470921863,0.00170527,3340.7,3340.6,0.73]
[1641470922263,0.00170527,3340.7,3340.6,4.33]
[1641470922463,0.00170527,3340.7,3340.6,5.33]
[1641470923564,0.00170527,3340.7,3340.6,1.73]
[1641470924068,0.00170527,3340.7,3340.6,0.73]
[1641470924265,0.00170527,3340.7,3340.6,4.23]
[1641470924466,0.00170527,3340.7,3340.6,5.23]
[1641470926815,0.00170527,3340.7,3340.6,1.73]
[1641470927215,0.00170527,3340.7,3340.6,0.73]
[1641470928217,0.00170527,3340.7,3340.6,3.98]
[1641470928616,0.00170527,3340.7,3340.6,7.26104193]
[1641470928817,0.00170527,3340.7,3340.6,4.98]
[1641470930163,0.00170527,3340.7,3340.6,1.73]
[1641470930564,0.00170527,3340.7,3340.6,0.73]
[1641470931370,0.00170527,3340.7,3340.3,1.13450831]
[1641470931568,0.74858,3340.6,3340.3,1.13450831]
[1641470931767,0.74971685,3340.6,3340.3,1.13450831]
[1641470932166,1.6373984,3340.4,3340.3,1.13450831]
[1641470932771,1.6373984,3340.4,3339.7,1.27270828]
[1641470933026,0.74862,3340.2,3339.7,1.27270828]
[1641470933220,0.74862,3340.2,3339.8,0.00341054]
[1641470934321,0.74862,3340.2,3339.8,0.75194054]
[1641470934521,0.00113685,3340.6,3339.9,3.70908885]
[1641470934722,0.00113685,3340.6,3339.9,2.96358187]
[1641470934922,0.00113685,3340.6,3340.0,1.0022737]
[1641470935123,0.00113685,3340.6,3340.1,2.64197676]
[1641470935323,0.00113685,3340.6,3340.1,2.64368203]
[1641470935529,0.00113685,3340.6,3340.2,1.00113685]
[1641470935724,0.00113685,3340.6,3340.3,2.32067437]
[1641470935924,0.74952685,3340.6,3340.3,2.32067437]
[1641470936223,0.74952685,3340.6,3340.3,2.62067437]
[1641470936626,0.74155186,3340.6,3340.4,1.0]
[1641470937168,0.74155186,3340.6,3340.2,1.13564516]
[1641470937169,0.74155186,3340.6,3340.2,2.43564516]
[1641470937372,0.74847,3340.5,3340.2,1.43564516]
[1641470937567,0.74847,3340.5,3340.2,2.43564516]
[1641470937969,0.74847,3340.5,3340.2,1.30113685]
[1641470939269,0.74847,3340.5,3340.2,3.47462762]
[1641470939472,0.74847,3340.5,3340.3,1.13450831]
[1641470939670,0.74847,3340.5,3340.3,2.13450831]
[1641470940074,0.74847,3340.5,3340.3,1.0]
[1641470940270,0.74847,3340.5,3340.2,3.18405516]
[1641470940271,0.74847,3340.5,3340.2,1.88405516]
[1641470941522,0.74847,3340.5,3340.2,1.04954685]
[1641470942322,5.74847,3340.5,3340.2,1.04954685]
[1641470942521,5.74847,3340.5,3340.2,0.00113685]
[1641470947166,5.74847,3340.5,3340.2,1.13564516]
[1641470948430,5.74847,3340.5,3340.2,1.94923743]
[1641470948627,5.74847,3340.5,3340.2,2.94923743]
[1641470949127,5.5821335,3340.5,3340.2,4.08374574]
[1641470949931,5.5821335,3340.5,3340.2,1.94923743]
[1641470950232,0.74874,3340.4,3340.1,1.13450831]
[1641470950431,1.4974555,3340.3,3340.1,1.13450831]
[1641470950632,0.7487355,3340.3,3339.5,1.13450831]
[1641470950828,2.12121752,3339.9,3339.5,1.13450831]
[1641470951031,1.32071196,3340.4,3339.5,1.13450831]
[1641470951032,1.4974629,3340.0,3339.6,0.00341054]
[1641470952272,2.11187213,3339.9,3339.6,0.00341054]
[1641470952471,2.11187213,3339.9,3339.3,0.00511581]
[1641470953071,2.11187213,3339.9,3339.3,0.30511581]
[1641470953472,0.74882,3339.8,3339.4,0.00454739]
[1641470953971,0.74882,3339.8,3339.1,1.43450831]
[1641470953972,0.74882,3339.8,3339.2,0.00568423]
[1641470954774,2.86067903,3339.9,3339.2,0.00568423]
[1641470955617,2.86067903,3339.9,3339.1,0.00625266]
[1641470955817,0.7488069,3339.9,3339.1,2.27528406]
[1641470956227,0.7488069,3339.9,3339.2,0.00568423]
[1641470957019,0.7488069,3339.9,3339.3,1.43450831]
[1641470957418,0.7488069,3339.9,3339.4,0.00454739]
[1641470957817,0.7488069,3339.9,3339.4,1.1390557]
[1641470958017,0.7488069,3339.9,3339.4,3.28865524]
[1641470958217,0.7488069,3339.9,3339.5,0.00397896]
[1641470958417,0.7488069,3339.9,3339.5,1.00397896]
[1641470958621,5.7488069,3339.9,3339.5,0.30397896]
[1641470959018,5.7488069,3339.9,3339.5,0.00397896]
[1641470959478,5.7488069,3339.9,3339.4,0.00454739]
[1641470960779,2.17105496,3339.8,3339.4,0.00454739]
[1641470964217,10.1,3339.7,3339.0,1.13450831]
[1641470964418,10.1,3339.7,3339.0,0.53650831]
[1641470964419,0.7489582,3339.6,3339.0,0.53650831]
[1641470964618,0.7489582,3339.6,3339.1,0.00170527]
[1641470964619,0.75009505,3339.6,3339.1,0.00170527]
[1641470964818,10.25,3339.5,3338.5,2.94210395]
[1641470965019,11.1405737,3339.5,3338.5,2.94210395]
[1641470965220,6.05,3339.3,3337.9,2.2690314]
[1641470965419,1.49806,3339.0,3337.9,4.52906429]
[1641470965618,1.49806,3339.0,3338.3,0.00170527]
[1641470965819,0.00170527,3338.9,3338.3,0.00170527]
[1641470966218,0.00113684,3338.8,3338.3,0.00170527]
[1641470966420,2.19610069,3338.7,3338.3,0.00170527]
[1641470966628,2.94512429,3338.7,3338.3,0.00170527]
[1641470966874,2.94512429,3338.7,3337.7,2.27576028]
[1641470966875,2.94512429,3338.7,3337.8,0.00454739]
[1641470967867,1.4981,3338.5,3337.8,0.00454739]
[1641470968067,1.4981,3338.5,3337.9,0.00082071]
[1641470968068,0.7492,3338.3,3337.9,0.00082071]
[1641470968270,0.8879636,3338.4,3337.5,2.6810258]
[1641470968771,0.00284212,3338.3,3337.6,0.00113685]
[1641470968969,1.73547304,3337.6,3337.5,2.6810258]
[1641470970517,0.7492636,3337.7,3337.5,4.39403604]
[1641470970716,0.6492636,3337.7,3337.5,4.39403604]
[1641470971116,0.6492636,3337.7,3337.6,1.3]
[1641470971917,0.6492636,3337.7,3337.6,3.01301024]
[1641470976077,0.74926,3337.8,3337.6,3.01301024]
[1641470976376,2.99627,3339.1,3337.7,0.43]
[1641470976576,1.94833272,3338.8,3337.7,0.43]
[1641470976774,0.00284212,3338.1,3337.7,0.43]
[1641470976977,0.00284212,3338.1,3337.7,0.50118739]
[1641470977174,0.05426981,3338.8,3337.8,0.74889]
[1641470977175,0.0022737,3338.0,3337.8,0.74889]
[1641470977375,0.0022737,3338.0,3337.8,1.17889]
[1641470977575,0.00170527,3337.9,3337.8,11.37889]
[1641470977777,0.00170527,3337.9,3337.8,14.09190024]
[1641470982279,0.74891,3338.5,3337.8,4.19190024]
[1641470982677,0.00284212,3338.4,3337.8,4.19190024]
[1641470983075,0.0022737,3338.3,3337.8,4.19190024]
[1641470983475,0.00170527,3338.2,3337.8,4.19190024]
[1641470983677,0.00170527,3338.2,3337.9,1.71301024]
[1641470983879,0.74891,3338.5,3337.9,1.71301024]
[1641470983880,0.00113685,3338.1,3337.9,1.71301024]
[1641470984077,0.00113685,3338.1,3337.9,2.71301024]
[1641470984278,0.00113685,3338.1,3337.9,2.56301024]
[1641470984883,0.00113685,3338.1,3337.9,1.0]
[1641470985080,0.00113685,3338.1,3337.8,1.47889]
[1641470986930,0.00113685,3338.1,3337.8,1.04889]
[1641470987131,0.00113685,3338.2,3338.1,0.6798694]
[1641470987334,1.49799,3338.3,3338.1,0.6798694]
[1641470988735,4.3201306,3338.1,3337.9,0.00113685]
[1641470989133,4.3201306,3338.1,3337.8,0.00170527]
[1641470992790,5.0691577,3338.1,3337.8,0.00170527]
[1641470993029,5.0691577,3338.1,3337.8,0.75071527]
[1641470993230,5.0691577,3338.1,3337.6,0.00284212]
[1641470993430,5.0691577,3338.1,3337.6,1.30284212]
[1641470993831,5.0691577,3338.1,3337.7,0.0022737]
[1641470994031,2.20527076,3338.0,3337.7,0.0022737]
[1641470994236,2.20527076,3338.0,3337.6,0.00284212]
[1641470995435,5.6,3337.9,3337.2,1.49753211]
[1641470995832,0.00170527,3337.9,3337.3,0.00170527]
[1641470996634,0.00170527,3337.9,3337.0,0.00341054]
[1641470997904,0.00170527,3337.9,3336.8,0.00454739]
[1641470998505,0.00170527,3337.9,3336.6,0.00568423]
[1641470999104,1.49866,3337.7,3336.6,0.00568423]
[1641470999306,0.7493229,3337.6,3336.6,0.00568423]
[1641470999504,0.7493229,3337.6,3336.6,0.75500423]
[1641470999905,0.7493229,3337.6,3336.7,0.00511581]
[1641471000924,0.7493229,3337.6,3336.8,0.74929]
[1641471001122,0.7493229,3337.6,3336.8,1.04929]
[1641471001324,0.7493229,3337.6,3336.9,0.00397896]
[1641471004126,0.7208229,3337.6,3336.9,0.00397896]